bitfinex-derivatives/quotes_ETHF0:USTF0_20250709
["timestamp","ask_amount","ask_price","bid_price","bid_amount"]
[1752068057315,26.489,2664.9,2664.8,0.75042]
[1752068057512,3.3691733,2665.0,2664.9,0.75039]
[1752068057712,26.489,2665.0,2664.9,0.75039]
[1752068058114,54.07,2665.3,2664.9,1.87594]
[1752068058312,54.07,2665.3,2665.2,0.7503]
[1752068058613,81.30128,2665.3,2665.2,0.7503]
[1752068058807,80.551,2665.3,2665.2,0.7503]
[1752068059419,0.75039,2664.9,2664.8,1.68494023]
[1752068059617,26.517,2664.9,2664.6,1.68494023]
[1752068059820,0.75043,2664.8,2664.7,0.75044]
[1752068060615,0.75047,2664.7,2664.6,0.75046]
[1752068060817,26.517,2664.9,2664.4,4.89274023]
[1752068061017,0.75045,2664.7,2664.6,0.75044]
[1752068061321,28.39299,2664.9,2664.4,4.89274023]
[1752068061519,0.75047,2664.7,2664.6,0.75046]
[1752068062521,0.75053,2664.4,2664.3,2.36694023]
[1752068062719,0.75053,2664.4,2664.3,1.43256]
[1752068062914,27.2675,2664.5,2664.4,0.75053]
[1752068063120,27.2675,2664.5,2664.3,1.43253]
[1752068063121,0.75053,2664.4,2664.3,1.43253]
[1752068063422,27.26752,2664.5,2664.4,0.75053]
[1752068064319,26.517,2664.5,2664.2,1.68494023]
[1752068064522,0.75064,2664.0,2663.9,1.68494023]
[1752068064723,1.87671,2663.9,2663.4,1.68494023]
[1752068064923,0.75081,2663.4,2663.3,2.30844023]
[1752068065228,29.7298,2663.4,2663.0,1.68494023]
[1752068065422,3.22225,2663.3,2662.8,2.43591023]
[1752068065621,0.75094,2663.0,2662.9,0.75094]
[1752068065816,0.75095,2662.9,2662.8,2.43591023]
[1752068066325,26.523,2663.0,2662.9,0.75095]
[1752068066525,27.27394,2663.0,2662.8,0.75096]
[1752068066715,27.27394,2663.0,2662.7,3.2078]
[1752068066716,0.75094,2663.0,2662.7,3.2078]
[1752068066917,26.522,2663.3,2662.7,7.97017724]
[1752068067125,26.522,2663.3,2662.7,4.89274023]
[1752068067329,1.2995,2663.2,2662.7,6.77025023]
[1752068067627,0.75087,2663.2,2663.1,0.75089]
[1752068067827,27.27387,2663.2,2663.1,0.75089]
[1752068068028,1.0132,2663.5,2662.7,8.97555023]
[1752068068225,0.75084,2663.3,2663.0,3.2078]
[1752068068421,26.523,2663.4,2663.0,3.2078]
[1752068068622,26.523,2663.4,2663.3,0.75084]
[1752068068816,0.75074,2663.7,2663.1,0.947]
[1752068069116,26.515,2663.7,2663.5,0.75076]
[1752068069315,26.515,2663.7,2663.6,0.75075]
[1752068069316,27.26574,2663.7,2663.6,0.75075]
[1752068069527,26.515,2663.7,2663.6,0.75075]
[1752068071626,0.75076,2663.6,2663.5,0.75076]
[1752068072022,26.515,2663.7,2663.6,0.75075]
[1752068072225,27.26573,2663.7,2663.6,0.75075]
[1752068072527,26.515,2663.7,2663.6,0.75075]
[1752068072929,26.515,2663.7,2663.5,0.75077]
[1752068073124,0.75076,2663.6,2663.5,0.75077]
[1752068073525,27.26574,2663.7,2663.6,0.75075]
[1752068073730,27.5282,2663.7,2663.4,0.00563264]
[1752068074028,0.75078,2663.5,2663.4,0.00563264]
[1752068074229,1.76398,2663.5,2663.4,0.00563264]
[1752068074625,3.00718,2663.5,2663.4,0.00563264]
[1752068075127,0.75095,2662.9,2662.8,2.36534023]
[1752068075327,26.484,2662.9,2662.8,3.11631023]
[1752068075725,27.23495,2662.9,2662.8,1.43137]
[1752068076131,26.484,2662.9,2662.8,1.43137]
[1752068077133,26.484,2662.9,2662.8,2.37837]
[1752068078429,1.2491,2663.5,2662.9,1.87733]
[1752068078631,27.22684,2663.4,2663.3,0.75082]
[1752068079228,27.22384,2663.4,2663.3,0.75082]
[1752068080031,26.473,2663.4,2663.3,0.75082]
[1752068080231,0.75081,2663.5,2663.4,0.75079]
[1752068080428,0.75085,2663.4,2663.0,5.3902]
[1752068080628,0.75087,2663.3,2663.2,0.75084]
[1752068080834,0.7509,2663.1,2663.0,0.75091]
[1752068081033,27.2149,2663.1,2663.0,0.75091]
[1752068081535,0.75095,2663.0,2662.8,0.6804]
[1752068081728,26.464,2663.1,2662.8,0.6804]
[1752068081729,0.75095,2662.9,2662.8,0.6804]
[1752068082134,0.75095,2662.9,2662.8,1.43138]
[1752068082533,27.21491,2663.1,2663.0,0.75092]
[1752068082932,0.75095,2663.0,2662.9,0.75093]
[1752068083134,2.08425,2663.0,2662.9,0.75093]
[1752068083336,0.75098,2662.8,2662.7,3.2078]
[1752068083532,0.75109,2662.4,2662.3,3.2078]
[1752068083733,0.75115,2662.2,2662.1,1.68494023]
[1752068084041,0.75118,2662.1,2662.0,1.38988]
[1752068084340,0.75121,2662.0,2661.9,3.2078]
[1752068084539,0.75121,2662.0,2661.9,3.95903]
[1752068084840,27.20719,2662.1,2662.0,0.75121]
[1752068086141,26.456,2662.1,2662.0,0.75121]
[1752068086335,27.20718,2662.1,2662.0,0.75121]
[1752068086537,0.75121,2662.0,2661.9,3.95902]
[1752068086741,27.7096,2662.1,2662.0,0.75121]
[1752068086941,28.46079,2662.1,2661.6,3.2078]
[1752068087140,28.46079,2662.1,2662.0,0.75121]
[1752068087342,28.7228,2662.1,2661.6,3.95911]
[1752068087543,27.1199,2662.0,2661.6,3.2078]
[1752068087740,0.6799,2662.0,2661.6,3.2078]
[1752068087942,27.19824,2661.9,2661.8,0.75124]
[1752068088146,0.75127,2661.8,2661.7,0.75127]
[1752068088536,0.75129,2661.7,2661.6,3.2078]
[1752068088736,0.75129,2661.7,2661.4,0.6823]
[1752068088737,0.75135,2661.5,2661.4,0.6823]
[1752068089048,0.75146,2661.1,2661.0,0.641]
[1752068089248,27.20346,2661.1,2661.0,0.641]
[1752068089548,27.20346,2661.1,2661.0,2.40759]
[1752068089549,26.452,2661.1,2661.0,2.40759]
[1752068089742,26.456,2661.3,2661.2,0.75143]
[1752068089940,26.456,2661.3,2661.1,1.87866]
[1752068089941,0.75145,2661.2,2661.0,0.641]
[1752068090137,26.456,2661.3,2661.2,0.75143]
[1752068090843,27.2074,2661.3,2661.2,0.75143]
[1752068091045,0.75145,2661.2,2661.1,0.75144]
[1752068091244,26.456,2661.3,2661.0,0.641]
[1752068091449,0.75146,2661.1,2661.0,1.39247]
[1752068091745,0.75146,2661.1,2661.0,0.641]
[1752068091938,0.75146,2661.1,2661.0,3.8488]
[1752068092346,0.75146,2661.1,2661.0,0.641]
[1752068092948,0.75146,2661.1,2661.0,1.39249]
[1752068093150,26.456,2661.3,2660.7,1.87891]
[1752068093349,27.21344,2661.2,2661.1,0.75144]
[1752068094042,0.75146,2661.1,2661.0,0.75147]
[1752068094250,26.462,2661.2,2661.1,0.75146]
[1752068094438,0.6799,2661.8,2661.1,1.0151]
[1752068094640,26.449,2661.6,2661.3,0.75139]
[1752068094845,0.75135,2661.5,2661.4,0.75137]
[1752068095039,0.7514,2661.3,2661.2,0.639]
[1752068095241,0.7514,2661.3,2660.9,3.2078]
[1752068095242,0.75149,2661.0,2660.9,3.95931]
[1752068095445,26.461,2661.0,2660.9,3.95931]
[1752068096044,27.21249,2661.0,2660.9,3.2078]
[1752068096349,27.4331,2661.0,2660.7,0.75155]
[1752068096648,27.4331,2661.0,2660.6,0.639]
[1752068096649,0.75156,2660.8,2660.6,1.39059]
[1752068096950,27.21757,2660.7,2660.6,0.639]
[1752068097145,26.466,2660.7,2660.6,0.7516]
[1752068097550,28.53327,2660.7,2660.5,3.2078]
[1752068097749,27.7817,2660.7,2660.5,3.95941]
[1752068097951,27.7817,2660.7,2660.6,0.7516]
[1752068098149,0.7516,2660.6,2660.5,3.2078]
[1752068098351,1.3157,2660.6,2660.5,3.2078]
[1752068098652,2.0673,2660.6,2660.5,3.2078]
[1752068099043,1.3157,2660.6,2660.5,3.95943]
[1752068099250,26.449,2660.6,2660.5,3.2078]
[1752068099547,26.449,2660.6,2660.5,3.95943]
[1752068099751,40.80563264,2661.0,2660.9,0.75151]
[1752068099948,0.00563264,2661.0,2660.9,0.75151]
[1752068100250,3.2078,2662.1,2660.9,8.27453835]
[1752068100453,2.63423835,2661.6,2661.1,3.2078]
[1752068100752,2.63423835,2661.6,2660.8,3.2078]
[1752068100753,21.7408,2661.5,2660.8,3.2078]
[1752068101047,1.87844,2661.4,2660.7,1.02073264]
[1752068101248,0.75154,2660.8,2660.7,1.02073264]
[1752068101443,26.599,2660.8,2660.7,0.00563264]
[1752068101650,27.35054,2660.8,2660.7,0.00563264]
[1752068102257,28.66584,2660.8,2660.7,0.00563264]
[1752068102759,2.06684,2660.8,2660.7,0.00563264]
[1752068102962,4.1799,2661.6,2660.7,3.21343264]
[1752068103162,54.88238,2661.4,2661.0,3.2078]
[1752068103362,26.608,2661.3,2661.1,3.2078]
[1752068103667,54.131,2661.4,2661.3,0.7514]
[1752068103855,26.609,2661.4,2661.3,0.7514]
[1752068104060,0.75127,2661.8,2661.7,0.75129]
[1752068104365,0.75124,2661.9,2661.8,0.75124]
[1752068104567,27.35722,2662.0,2661.9,0.75123]
[1752068104765,26.606,2662.0,2661.7,3.2078]
[1752068105066,0.75134,2661.5,2661.4,3.8393]
[1752068105560,26.605,2661.6,2661.4,4.59067]
[1752068105862,0.75145,2661.2,2661.1,3.95925]
[1752068106059,0.75151,2660.9,2660.8,3.2078]
[1752068106267,0.75151,2660.9,2660.7,0.00563264]
[1752068106462,1.9619,2661.1,2660.7,0.00563264]
[1752068106463,27.36354,2660.8,2660.7,0.00563264]
[1752068107665,1.9619,2661.1,2660.7,0.00563264]
[1752068107866,1.8783,2661.6,2661.1,0.75145]
[1752068108060,3.2078,2661.7,2660.8,3.2078]
[1752068108266,0.7514,2661.3,2661.2,3.2078]
[1752068108668,0.75145,2661.2,2661.0,0.75148]
[1752068108968,26.616,2661.1,2661.0,0.75149]
[1752068109171,0.75137,2661.5,2661.3,0.75138]
[1752068109366,1.3374,2661.6,2661.3,0.75138]
[1752068109564,0.75137,2661.4,2661.3,0.75138]
[1752068109871,0.75136,2661.5,2661.4,0.75137]
[1752068110061,26.608,2661.5,2661.4,0.75137]
[1752068110667,26.608,2661.5,2661.4,3.95917]
[1752068110875,26.607,2662.1,2661.4,11.1013]
[1752068111172,54.134,2662.2,2662.1,0.75117]
[1752068111560,54.134,2662.2,2662.1,3.95897]
[1752068111561,80.759,2662.2,2662.1,3.95897]
[1752068111876,81.51017,2662.2,2662.1,0.75117]
[1752068112170,0.75123,2662.0,2661.9,0.75122]
[1752068112371,0.75123,2662.0,2661.8,4.47]
[1752068112372,0.75123,2661.9,2661.8,5.22123]
[1752068112573,0.75123,2661.9,2661.8,3.95905]
[1752068112871,0.75123,2661.9,2661.5,0.6699]
[1752068112872,0.75132,2661.6,2661.5,0.6699]
[1752068113072,27.37632,2661.6,2661.5,0.6699]
[1752068113372,27.37632,2661.6,2661.5,1.42124]
[1752068113574,27.37632,2661.6,2661.5,0.6699]
[1752068113874,27.37632,2661.6,2661.5,1.42124]
[1752068114272,27.37632,2661.6,2661.5,0.6699]
[1752068114469,26.625,2661.6,2661.1,2.24658698]
[1752068114670,0.75145,2661.2,2661.1,0.75145]
[1752068114864,27.37145,2661.2,2661.1,0.75145]
[1752068115065,0.75146,2661.1,2661.0,3.95926]
[1752068115271,0.75149,2661.0,2660.9,2.24658698]
[1752068115466,0.75149,2661.0,2660.8,1.43462]
[1752068115669,26.625,2660.9,2660.8,3.11907993]
[1752068116268,27.37651,2660.9,2660.8,3.11907993]
[1752068116968,44.0078,2661.3,2660.7,4.89787257]
[1752068117174,40.8,2661.3,2661.1,3.2078]
[1752068117369,26.608,2661.2,2661.1,3.95926]
[1752068117570,26.608,2661.2,2661.1,5.31116]
[1752068117972,27.35943,2661.2,2661.1,3.95926]
[1752068118167,27.35943,2661.2,2661.1,3.2078]
[1752068118368,0.75146,2661.1,2661.0,3.95927]
[1752068118770,27.35945,2661.2,2661.1,0.75146]
[1752068119573,40.8,2661.4,2661.0,3.2078]
[1752068119574,40.8,2661.4,2661.3,0.7514]
[1752068119772,40.8,2661.4,2661.3,3.9592]
[1752068119773,67.416,2661.4,2661.3,3.9592]
[1752068120074,0.75143,2661.2,2661.1,1.68443993]
[1752068120473,0.75146,2661.1,2661.0,2.43590993]
[1752068120664,27.35446,2661.1,2661.0,2.43590993]
[1752068120863,27.35446,2661.1,2661.0,0.75147]
[1752068121073,27.35447,2661.1,2661.0,0.75149]
[1752068121275,26.603,2661.1,2661.0,0.75149]
[1752068121570,0.75149,2661.0,2660.9,3.9593]
[1752068121971,0.75149,2661.0,2660.7,2.44162257]
[1752068121972,0.75154,2660.8,2660.7,2.44162257]
[1752068122167,26.592,2660.8,2660.7,0.75718264]
[1752068122671,7.56916477,2661.7,2660.9,1.87879]
[1752068122875,0.7513,2661.7,2661.6,0.75132]
[1752068123071,0.6544,2661.8,2661.6,0.75132]
[1752068123273,4.12048477,2662.0,2661.9,0.7512]
[1752068123575,27.34922,2662.0,2661.9,0.7512]
[1752068123874,27.36222,2662.0,2661.9,0.7512]
[1752068124077,0.75126,2661.9,2661.8,0.75124]
[1752068124276,3.2078,2662.1,2661.8,0.75124]
[1752068124277,54.134,2662.2,2661.8,1.87814]
[1752068124571,54.134,2662.2,2662.1,0.75117]
[1752068124773,80.738,2662.2,2662.1,3.95897]
[1752068124973,54.134,2662.2,2662.1,3.95897]
[1752068125174,4.1999,2662.7,2662.1,3.2078]
[1752068125175,0.6183,2662.6,2662.1,3.2078]
[1752068125473,3.36926477,2662.9,2662.5,3.2078]
[1752068125678,26.612,2662.8,2662.5,3.95884]
[1752068125881,0.75102,2662.7,2662.6,0.75103]
[1752068126177,26.611,2662.7,2662.6,0.75103]
[1752068126374,26.611,2662.7,2662.6,3.2078]
[1752068126673,0.75106,2662.5,2662.4,0.00563264]
[1752068127677,0.75105,2662.6,2662.5,0.75106]
[1752068127976,0.75106,2662.5,2662.4,0.00563264]
[1752068128172,26.59,2662.5,2662.4,0.75671264]
[1752068129176,27.34106,2662.5,2662.4,0.00563264]
[1752068129370,27.34106,2662.5,2662.4,0.75672264]
[1752068129571,26.59,2662.5,2662.4,0.75672264]
[1752068130076,27.34106,2662.5,2662.4,0.75672264]
[1752068130278,28.33316,2662.5,2662.4,0.00563264]
[1752068130478,0.75123,2661.9,2661.7,3.2078]
[1752068130678,26.568,2661.8,2661.7,3.95909]
[1752068130980,26.568,2661.8,2661.7,3.2078]
[1752068131276,27.31926,2661.8,2661.7,3.2078]
[1752068131577,27.31926,2661.8,2661.3,3.2078]
[1752068131578,26.568,2661.8,2661.3,3.2078]
[1752068132078,0.9921,2661.7,2661.3,3.2078]
[1752068132278,0.75135,2661.5,2661.4,0.75137]
[1752068132475,27.32335,2661.5,2661.4,0.75137]
[1752068133575,40.8,2661.7,2661.4,0.9653]
[1752068133775,26.567,2661.5,2661.4,2.08807]
[1752068134277,26.567,2661.5,2661.4,3.05337]
[1752068134476,26.567,2661.5,2661.4,0.75137]
[1752068134776,27.31834,2661.5,2661.4,0.75137]
[1752068135170,26.567,2661.5,2661.4,0.75137]
[1752068135371,0.7513,2661.7,2661.6,0.75128]
[1752068135573,26.562,2661.7,2661.6,0.75132]
[1752068136374,27.31329,2661.7,2661.6,0.75132]
[1752068136576,27.31329,2661.7,2661.6,3.95912]
[1752068137179,27.31329,2661.7,2661.6,3.2078]
[1752068137581,27.31329,2661.7,2661.6,3.95912]
[1752068137781,27.31329,2661.7,2661.6,3.2078]
[1752068138382,0.75137,2661.5,2661.4,0.75135]
[1752068138574,0.75137,2661.5,2661.3,3.2078]
[1752068138575,0.75137,2661.4,2661.3,3.2078]
[1752068138772,27.29437,2661.4,2661.3,3.2078]
[1752068139283,27.29437,2661.4,2661.3,3.9592]
[1752068139974,26.543,2661.4,2661.3,3.9592]
[1752068140180,1.7434,2661.7,2661.4,0.75137]
[1752068140481,0.6406,2661.9,2661.6,3.2078]
[1752068140679,0.75132,2661.6,2661.5,0.75134]
[1752068141084,0.75131,2661.7,2661.6,0.75129]
[1752068141277,26.529,2661.8,2661.4,1.87843]
[1752068141480,27.28029,2661.8,2661.7,0.75129]
[1752068141679,0.75133,2661.7,2661.6,0.7513]
[1752068141878,26.529,2661.8,2661.7,0.75129]
[1752068141879,28.59907,2661.8,2661.7,0.75129]
[1752068142279,0.75119,2662.2,2662.1,0.75116]
[1752068142884,27.30519,2662.2,2662.1,0.75116]
[1752068143084,28.62399,2662.2,2662.1,0.75116]
[1752068143281,0.7512,2662.1,2662.0,0.75118]
[1752068143486,0.75124,2662.0,2661.9,0.75121]
[1752068143888,26.543,2662.0,2661.9,0.75121]
[1752068144282,0.75117,2662.2,2662.1,0.75114]
[1752068144482,0.00563264,2662.7,2662.1,6.05101]
[1752068144680,27.29306,2662.6,2662.5,0.75103]
[1752068144884,0.75109,2662.5,2662.4,0.75108]
[1752068145478,27.29205,2662.6,2662.5,0.75106]
[1752068145683,0.75109,2662.5,2662.4,0.75108]
[1752068146183,26.541,2662.6,2662.1,3.2078]
[1752068146384,0.75115,2662.3,2662.2,0.75113]
[1752068146584,26.535,2662.3,2662.2,0.75113]
[1752068146793,27.28612,2662.3,2662.2,0.75113]
[1752068147388,0.75115,2662.2,2662.1,3.95895]
[1752068147589,0.7512,2662.0,2661.9,1.68255233]
[1752068147790,0.7512,2662.0,2661.9,2.43377233]
[1752068148087,26.525,2662.0,2661.9,0.75122]
[1752068149192,27.2762,2662.0,2661.9,0.75122]
[1752068149388,27.2762,2662.0,2661.8,2.35425233]
[1752068149389,0.75123,2661.9,2661.8,1.42296]
[1752068149986,0.75123,2661.9,2661.7,5.64161233]
[1752068150188,0.75132,2661.6,2661.4,3.2078]
[1752068150388,26.508,2661.5,2661.4,3.95915]
[1752068151288,27.25934,2661.5,2661.3,1.68255233]
[1752068151486,1.0239,2661.4,2661.1,3.853]
[1752068151694,1.0239,2661.4,2661.2,0.7514]
[1752068151695,0.75142,2661.3,2661.2,0.7514]
[1752068152584,0.75142,2661.3,2661.0,1.68255233]
[1752068152585,0.75146,2661.1,2661.0,1.68255233]
[1752068152791,0.75146,2661.1,2660.7,1.68255233]
[1752068152792,0.75154,2660.9,2660.7,1.68255233]
[1752068152987,26.506,2660.8,2660.7,2.43412233]
[1752068153182,0.75711264,2661.1,2661.0,0.75149]
[1752068153387,0.75152,2661.0,2660.9,0.75149]
[1752068153889,0.75154,2660.8,2660.7,4.89185464]
[1752068154097,27.25254,2660.8,2660.7,3.2078]
[1752068154292,0.75157,2660.7,2660.6,1.68405464]
[1752068154490,0.75157,2660.7,2660.6,2.43563464]
[1752068154795,2.10547,2660.7,2660.6,0.75158]
[1752068155993,27.25256,2660.8,2660.7,0.75157]
[1752068156596,27.22956,2660.8,2660.7,0.75154]
[1752068156988,27.22956,2660.8,2660.7,3.95934]
[1752068157193,26.478,2660.8,2660.7,3.95934]
[1752068157394,27.22954,2660.8,2660.7,3.95934]
[1752068158100,27.5019,2660.8,2660.4,5.64348464]
[1752068158289,27.5019,2660.8,2660.3,2.36635464]
[1752068158290,0.75165,2660.4,2660.3,2.36635464]
[1752068158602,27.21968,2660.4,2660.3,0.75168]
[1752068159095,26.468,2660.4,2660.3,0.75168]
[1752068159291,27.21965,2660.4,2660.3,0.75168]
[1752068160195,26.468,2660.4,2660.1,3.2078]
[1752068160396,0.75171,2660.2,2660.1,3.95952]
[1752068160597,26.468,2660.4,2660.3,0.75168]
[1752068160790,0.6696,2660.6,2660.1,5.0871]
[1752068160996,1.42121,2660.6,2660.5,0.75163]
[1752068161298,3.95939,2660.7,2660.6,0.7516]
[1752068161495,30.42739,2660.7,2660.6,0.7516]
[1752068161896,3.95939,2660.7,2660.6,0.7516]
[1752068162192,0.75162,2660.6,2660.5,0.7516]
[1752068162396,26.466,2660.7,2660.4,3.2078]
[1752068162597,0.75163,2660.5,2660.4,3.95944]
[1752068162792,0.75163,2660.5,2660.4,3.2078]
[1752068163098,28.34499,2660.7,2660.1,3.2078]
[1752068163297,0.75171,2660.2,2660.1,3.2078]
[1752068163498,26.469,2660.2,2660.1,3.95954]
[1752068163696,27.22071,2660.2,2660.1,3.95954]
[1752068163899,0.75177,2660.0,2659.9,0.6274]
[1752068164200,0.7518,2659.9,2659.8,3.2078]
[1752068164502,27.2188,2659.9,2659.8,3.95962]
[1752068165100,26.467,2659.9,2659.8,3.95962]
[1752068165301,0.75185,2659.7,2659.6,0.18559795]
[1752068165497,4.41097395,2659.7,2659.6,0.18559795]
[1752068165703,0.75202,2659.2,2659.1,0.75202]
[1752068165995,26.506,2659.2,2659.1,0.75202]
[1752068166499,26.50663264,2659.4,2659.1,0.9872]
[1752068166696,26.50663264,2659.4,2659.2,0.75199]
[1752068166889,28.57939264,2659.4,2659.3,0.75197]
[1752068167289,27.82743264,2659.4,2659.0,3.2078]
[1752068167497,28.85133264,2659.4,2659.3,0.75197]
[1752068167698,26.49863264,2659.4,2659.3,0.75197]
[1752068167898,0.00563264,2659.4,2659.3,4.94697]
[1752068168196,1.0239,2659.9,2659.3,4.94697]
[1752068168197,26.496,2659.9,2659.4,1.87983]
[1752068168393,26.496,2659.9,2659.8,3.95962]
[1752068168594,3.2078,2660.5,2659.8,4.195]
[1752068168793,0.7516,2660.6,2660.5,0.7516]
[1752068168999,27.3126,2660.6,2660.5,0.7516]
[1752068169298,0.75173,2660.2,2660.1,0.75171]
[1752068169499,26.563,2660.2,2660.1,0.75171]
[1752068169900,1.2717,2660.5,2660.0,3.2078]
[1752068169901,3.15083,2660.5,2660.0,3.2078]
[1752068170201,0.7518,2659.9,2659.8,1.43251]
[1752068170401,27.3158,2659.9,2659.8,0.75181]
[1752068170600,27.5879,2659.9,2659.2,2.36475464]
[1752068170799,3.1513,2659.8,2659.3,0.75195]
[1752068170997,0.75197,2659.3,2659.2,0.6807]
[1752068171298,0.75197,2659.3,2659.2,2.41989]
[1752068171299,26.566,2659.3,2659.2,2.41989]
[1752068171505,0.75202,2659.2,2659.1,0.75202]
[1752068171700,26.566,2659.3,2659.0,3.2078]
[1752068171904,0.752,2659.2,2659.1,0.752]
[1752068172200,0.75202,2659.1,2659.0,3.95985]
[1752068172898,0.75202,2659.1,2659.0,3.2078]
[1752068173098,0.75208,2658.9,2658.8,1.4328]
[1752068173304,27.33308,2658.9,2658.8,1.4328]
[1752068173602,0.75214,2658.8,2658.7,0.75213]
[1752068174104,0.75214,2658.7,2658.6,3.2078]
[1752068174304,0.75214,2658.7,2657.8,1.88094]
[1752068174305,0.75221,2658.5,2658.4,0.75222]
[1752068174494,26.577,2658.5,2658.4,0.75222]
[1752068174699,0.75222,2658.4,2658.3,3.2078]
[1752068174900,0.75222,2658.4,2658.0,1.68405464]
[1752068174901,1.2727,2658.4,2658.0,3.2078]
[1752068175305,0.7523,2658.2,2658.1,0.75231]
[1752068175501,0.75224,2658.4,2658.0,3.2078]
[1752068175700,3.2078,2658.6,2658.2,1.8807]
[1752068175905,54.16,2658.7,2658.5,3.95998]
[1752068176100,0.75207,2659.0,2658.6,0.9872]
[1752068176301,0.75206,2659.0,2658.9,0.75207]
[1752068176501,27.36306,2659.0,2658.9,0.75207]
[1752068176997,26.611,2659.0,2658.6,2.2937]
[1752068177203,1.88006,2659.1,2658.5,3.2078]
[1752068177402,1.88006,2659.1,2658.4,3.96001]
[1752068177403,0.75221,2658.5,2658.4,3.96001]
[1752068177602,27.35421,2658.5,2658.4,0.75221]
[1752068178098,1.349,2658.9,2658.2,1.8807]
[1752068178309,26.601,2658.8,2658.4,4.195]
[1752068178608,0.75217,2658.6,2658.5,0.75217]
[1752068179008,0.75219,2658.5,2658.4,4.9472]
[1752068179210,26.593,2658.5,2658.4,4.94721]
[1752068179508,27.34519,2658.5,2658.4,0.9872]
[1752068179708,27.34519,2658.5,2658.4,4.195]
[1752068180101,3.95989,2658.9,2658.8,0.75211]
[1752068180307,0.75216,2658.6,2658.5,1.2434]
[1752068180505,0.75216,2658.7,2658.6,0.75214]
[1752068181007,0.75213,2658.8,2658.7,0.75211]
[1752068181208,28.48532,2658.8,2658.4,4.195]
[1752068181408,0.75219,2658.5,2658.4,4.9472]
[1752068181597,27.36019,2658.5,2658.4,4.9472]
[1752068181798,0.75209,2658.9,2658.4,9.2372]
[1752068182003,0.75199,2659.3,2659.2,0.75199]
[1752068182206,57.3678,2659.5,2659.1,3.2078]
[1752068182411,57.3678,2659.5,2659.4,0.75194]
[1752068182703,54.16,2659.5,2659.4,3.95974]
[1752068182905,3.2078,2659.9,2659.5,0.75191]
[1752068183100,3.2078,2659.9,2659.8,0.75182]
[1752068183404,3.2078,2659.9,2659.6,0.6201]
[1752068183603,1.3491,2660.2,2659.7,3.2078]
[1752068183804,26.655,2660.1,2660.0,0.75177]
[1752068184003,27.40678,2660.1,2660.0,0.75175]
[1752068184504,26.655,2660.1,2660.0,0.75175]
[1752068184705,26.655,2660.1,2659.9,0.75177]
[1752068184907,26.655,2660.1,2660.0,0.75177]
[1752068185110,0.75178,2660.0,2659.9,0.75178]
[1752068185606,0.75182,2659.8,2659.7,3.2078]
[1752068185810,26.642,2659.8,2659.4,0.00563264]
[1752068186006,0.75191,2659.6,2659.5,0.7519]
[1752068186516,0.75187,2659.7,2659.6,0.75187]
[1752068186707,27.39385,2659.8,2659.7,0.75185]
[1752068187008,0.75187,2659.7,2659.6,0.75186]
[1752068187710,27.39384,2659.8,2659.7,0.75185]
[1752068188006,5.30838,2660.0,2659.9,0.7518]
[1752068188306,0.75176,2660.1,2660.0,0.75175]
[1752068188500,57.3798,2660.3,2659.7,3.2078]
[1752068188501,57.3798,2660.3,2659.8,1.87954]
[1752068188705,54.172,2660.3,2660.2,0.75171]
[1752068188902,3.2078,2660.6,2660.2,1.0294]
[1752068189219,26.635,2660.5,2660.4,3.95945]
[1752068190107,27.38663,2660.5,2660.4,3.95945]
[1752068190411,27.38663,2660.5,2660.4,3.2078]
[1752068190809,26.635,2660.5,2660.4,0.75165]
[1752068191008,26.635,2660.5,2660.4,4.98885]
[1752068191516,0.75154,2660.9,2660.8,0.75152]
[1752068191815,27.37054,2660.9,2660.8,0.75152]
[1752068192003,0.75154,2660.8,2660.7,3.2078]
[1752068192514,27.37053,2660.9,2660.7,3.2078]
[1752068192714,55.4772,2661.1,2660.9,0.7515]
[1752068192715,0.75151,2661.0,2660.9,0.7515]
[1752068192905,0.75152,2660.9,2660.8,0.75153]
[1752068193309,0.75154,2660.8,2660.7,3.2078]
[1752068193514,26.613,2661.0,2660.4,5.5435]
[1752068193817,26.613,2661.0,2660.4,0.75165]
[1752068193818,0.75163,2660.5,2660.4,0.75165]
[1752068194112,27.35563,2660.5,2660.4,0.75165]
[1752068195007,26.604,2660.5,2660.4,0.75165]
[1752068195204,26.611,2660.5,2660.4,3.95945]
[1752068195409,26.602,2660.5,2660.4,3.2078]
[1752068195612,27.35363,2660.5,2660.4,3.95945]
[1752068195815,27.35363,2660.5,2660.4,0.75165]
[1752068196211,26.602,2660.5,2660.4,0.75165]
[1752068196409,0.7516,2660.7,2660.6,0.75159]
[1752068196607,26.598,2660.7,2660.1,4.5285]
[1752068196809,1.87925,2660.3,2659.9,1.78119]
[1752068197006,0.75177,2660.0,2659.9,1.78119]
[1752068197506,0.75177,2660.0,2659.9,1.0294]
[1752068197709,0.75182,2659.8,2659.7,3.2078]
[1752068198010,27.34282,2659.8,2659.7,3.2078]
[1752068198406,0.75188,2659.6,2659.5,0.6217]
[1752068198608,0.75191,2659.5,2659.4,0.00563264]
[1752068198809,26.589,2659.5,2659.4,0.75757264]
[1752068199711,0.75187,2659.7,2659.6,0.75188]
[1752068199910,0.75184,2659.8,2659.7,0.75185]
[1752068200111,27.32984,2659.8,2659.7,0.75185]
[1752068200414,26.578,2659.8,2659.7,0.75185]